[Event "Early Titled Tuesday Blitz | February 8 2022"]
[White "Wahedi, Ahmad Siar"]
[Black "Sharapov, Evgeny"]
[WhiteFideId "4651260"]
[BlackFideId "14103133"]
[WhiteElo "2369"]
[BlackElo "2367"]
[Result "1-0"]
[Round "06"]
[TimeControl "180+1"]
[Date "2022.02.08"]
[WhiteClock "0:00:25"]
[BlackClock "0:00:33"]

1. c4 {[%clk 0:03:00]}  c5 {[%clk 0:02:59]} 2. Nc3 {[%clk 0:02:58]}  Nc6 {[%clk 0:02:58]} 3. g3 {[%clk 0:02:58]}  e5 {[%clk 0:02:58]} 4. Bg2 {[%clk 0:02:58]}  g6 {[%clk 0:02:58]} 5. d3 {[%clk 0:02:58]}  Bg7 {[%clk 0:02:58]} 6. e4 {[%clk 0:02:56]}  Nge7 {[%clk 0:02:57]} 7. Nge2 {[%clk 0:02:56]}  O-O {[%clk 0:02:57]} 8. O-O {[%clk 0:02:55]}  Rb8 {[%clk 0:02:56]} 9. Be3 {[%clk 0:02:51]}  Nd4 {[%clk 0:02:55]} 10. Rb1 {[%clk 0:02:51]}  a5 {[%clk 0:02:53]} 11. Nb5 {[%clk 0:02:49]}  Nxb5 {[%clk 0:02:50]} 12. cxb5 {[%clk 0:02:48]}  b6 {[%clk 0:02:47]} 13. Nc3 {[%clk 0:02:46]}  Bb7 {[%clk 0:02:47]} 14. Bg5 {[%clk 0:02:17]}  f6 {[%clk 0:02:46]} 15. Bd2 {[%clk 0:02:17]}  Kh8 {[%clk 0:02:45]} 16. f4 {[%clk 0:02:13]}  d6 {[%clk 0:02:40]} 17. f5 {[%clk 0:02:09]}  gxf5 {[%clk 0:02:37]} 18. exf5 {[%clk 0:02:09]}  Bxg2 {[%clk 0:02:36]} 19. Kxg2 {[%clk 0:02:09]}  d5 {[%clk 0:02:36]} 20. Qh5 {[%clk 0:02:03]}  Qe8 {[%clk 0:02:31]} 21. Qh4 {[%clk 0:01:55]}  Qf7 {[%clk 0:02:16]} 22. Rbe1 {[%clk 0:01:50]}  Rg8 {[%clk 0:02:14]} 23. g4 {[%clk 0:01:42]}  Bf8 {[%clk 0:02:10]} 24. Kh1 {[%clk 0:01:38]}  Rg7 {[%clk 0:01:44]} 25. Bh6 {[%clk 0:01:11]}  Rg8 {[%clk 0:01:42]} 26. Bd2 {[%clk 0:01:09]}  Rg7 {[%clk 0:01:40]} 27. Bh6 {[%clk 0:01:08]}  Rxg4 {[%clk 0:01:40]} 28. Qxg4 {[%clk 0:01:07]}  Bxh6 {[%clk 0:01:40]} 29. Qf3 {[%clk 0:01:02]}  Bg5 {[%clk 0:01:29]} 30. Rg1 {[%clk 0:00:59]}  Rg8 {[%clk 0:01:20]} 31. Rg2 {[%clk 0:00:50]}  Qe8 {[%clk 0:01:08]} 32. Nxd5 {[%clk 0:00:48]}  Nxd5 {[%clk 0:01:06]} 33. Qxd5 {[%clk 0:00:48]}  Qd8 {[%clk 0:00:58]} 34. Qc4 {[%clk 0:00:43]}  Rf8 {[%clk 0:00:50]} 35. h4 {[%clk 0:00:35]}  Bf4 {[%clk 0:00:47]} 36. Reg1 {[%clk 0:00:34]}  Be3 {[%clk 0:00:46]} 37. Re1 {[%clk 0:00:30]}  Bd4 {[%clk 0:00:45]} 38. Re4 {[%clk 0:00:30]}  h5 {[%clk 0:00:36]} 39. Rg6 {[%clk 0:00:27]}  Kh7 {[%clk 0:00:33]} 40. Qc1 {[%clk 0:00:25]} 1-0


[Site "https://www.chess.com"]

[Event "Early Titled Tuesday Blitz | February 8 2022"]
[White "Weetik, Vjacheslav"]
[Black "Khamzin, Olzhas"]
[WhiteFideId "4153472"]
[BlackFideId "13701690"]
[WhiteElo "2469"]
[BlackElo "2194"]
[Result "1-0"]
[Round "06"]
[TimeControl "180+1"]
[Date "2022.02.08"]
[WhiteClock "0:00:07"]
[BlackClock "0:00:26"]

1. d4 {[%clk 0:02:59]}  Nf6 {[%clk 0:02:58]} 2. c4 {[%clk 0:02:57]}  c5 {[%clk 0:02:59]} 3. d5 {[%clk 0:02:56]}  e6 {[%clk 0:03:00]} 4. Nc3 {[%clk 0:02:56]}  exd5 {[%clk 0:03:01]} 5. cxd5 {[%clk 0:02:57]}  Bd6 {[%clk 0:03:01]} 6. Nf3 {[%clk 0:02:55]}  O-O {[%clk 0:03:02]} 7. Bg5 {[%clk 0:02:53]}  Bc7 {[%clk 0:03:03]} 8. d6 {[%clk 0:02:53]}  Ba5 {[%clk 0:03:02]} 9. Qc2 {[%clk 0:02:36]}  Re8 {[%clk 0:03:03]} 10. e3 {[%clk 0:02:31]}  Nc6 {[%clk 0:03:03]} 11. Bc4 {[%clk 0:02:24]}  Nd4 {[%clk 0:02:57]} 12. Qd3 {[%clk 0:01:51]}  b5 {[%clk 0:02:20]} 13. Bd5 {[%clk 0:01:40]}  Nxf3+ {[%clk 0:01:21]} 14. Bxf3 {[%clk 0:01:20]}  Rb8 {[%clk 0:01:20]} 15. O-O {[%clk 0:01:12]}  Bxc3 {[%clk 0:01:16]} 16. bxc3 {[%clk 0:00:46]}  Bb7 {[%clk 0:01:14]} 17. Bxb7 {[%clk 0:00:37]}  Rxb7 {[%clk 0:01:15]} 18. f3 {[%clk 0:00:31]}  Re6 {[%clk 0:01:15]} 19. Rad1 {[%clk 0:00:27]}  Rb6 {[%clk 0:01:15]} 20. Qf5 {[%clk 0:00:21]}  Qc8 {[%clk 0:01:00]} 21. Bf4 {[%clk 0:00:19]}  Ne8 {[%clk 0:00:47]} 22. Rd5 {[%clk 0:00:15]}  Rc6 {[%clk 0:00:41]} 23. Rfd1 {[%clk 0:00:15]}  a6 {[%clk 0:00:38]} 24. h4 {[%clk 0:00:15]}  a5 {[%clk 0:00:37]} 25. a3 {[%clk 0:00:14]}  b4 {[%clk 0:00:35]} 26. c4 {[%clk 0:00:12]}  b3 {[%clk 0:00:34]} 27. a4 {[%clk 0:00:12]}  b2 {[%clk 0:00:34]} 28. Kh2 {[%clk 0:00:10]}  Qb8 {[%clk 0:00:33]} 29. Qc2 {[%clk 0:00:05]}  Rb6 {[%clk 0:00:31]} 30. Rb1 {[%clk 0:00:04]}  h6 {[%clk 0:00:31]} 31. Rxc5 {[%clk 0:00:05]}  g5 {[%clk 0:00:31]} 32. hxg5 {[%clk 0:00:05]}  Nxd6 {[%clk 0:00:31]} 33. gxh6 {[%clk 0:00:04]}  Rxh6+ {[%clk 0:00:30]} 34. Bxh6 {[%clk 0:00:03]}  Nf5+ {[%clk 0:00:25]} 35. Bf4 {[%clk 0:00:03]}  Nxe3 {[%clk 0:00:26]} 36. Bxb8 {[%clk 0:00:02]}  Nxc2 {[%clk 0:00:25]} 37. Bc7 {[%clk 0:00:03]}  Rb7 {[%clk 0:00:25]} 38. Be5 {[%clk 0:00:03]}  Ne3 {[%clk 0:00:21]} 39. Rxb2 {[%clk 0:00:03]}  Rxb2 {[%clk 0:00:22]} 40. Bxb2 {[%clk 0:00:03]}  f6 {[%clk 0:00:23]} 41. Rxa5 {[%clk 0:00:02]}  Kf7 {[%clk 0:00:23]} 42. Ra8 {[%clk 0:00:03]}  Nxc4 {[%clk 0:00:24]} 43. Bc3 {[%clk 0:00:04]}  Nb6 {[%clk 0:00:24]} 44. Ra7 {[%clk 0:00:04]}  Nd5 {[%clk 0:00:25]} 45. Bd2 {[%clk 0:00:04]}  Ke6 {[%clk 0:00:25]} 46. a5 {[%clk 0:00:04]}  d6 {[%clk 0:00:25]} 47. a6 {[%clk 0:00:05]}  Nb6 {[%clk 0:00:26]} 48. Rb7 {[%clk 0:00:05]}  Na8 {[%clk 0:00:26]} 49. a7 {[%clk 0:00:05]}  f5 {[%clk 0:00:26]} 50. Ba5 {[%clk 0:00:06]}  d5 {[%clk 0:00:25]} 51. Rb8 {[%clk 0:00:06]}  d4 {[%clk 0:00:26]} 52. Rxa8 {[%clk 0:00:06]}  d3 {[%clk 0:00:26]} 53. Rd8 {[%clk 0:00:07]}  Ke7 {[%clk 0:00:26]} 54. Rxd3 {[%clk 0:00:07]} 1-0


[Site "https://www.chess.com"]

[Event "Early Titled Tuesday Blitz | February 8 2022"]
[White "Winkels, Marcel"]
[Black "Silva, Kevin Ranidu"]
[WhiteFideId "1003887"]
[BlackFideId "9935258"]
[WhiteElo "1900"]
[BlackElo "1626"]
[Result "0-1"]
[Round "06"]
[TimeControl "180+1"]
[Date "2022.02.08"]
[WhiteClock "0:00:08"]
[BlackClock "0:00:12"]

1. e4 {[%clk 0:03:00]}  g6 {[%clk 0:02:58]} 2. d4 {[%clk 0:02:59]}  Bg7 {[%clk 0:02:42]} 3. Nc3 {[%clk 0:03:00]}  d6 {[%clk 0:02:42]} 4. f4 {[%clk 0:02:59]}  a6 {[%clk 0:02:42]} 5. Nf3 {[%clk 0:02:58]}  b5 {[%clk 0:02:41]} 6. Bd3 {[%clk 0:02:57]}  Bb7 {[%clk 0:02:42]} 7. a3 {[%clk 0:02:56]}  Nd7 {[%clk 0:02:42]} 8. O-O {[%clk 0:02:55]}  Ngf6 {[%clk 0:02:43]} 9. e5 {[%clk 0:02:53]}  Nd5 {[%clk 0:02:40]} 10. e6 {[%clk 0:02:39]}  fxe6 {[%clk 0:02:39]} 11. Ng5 {[%clk 0:02:39]}  Nxc3 {[%clk 0:02:35]} 12. bxc3 {[%clk 0:02:37]}  Bd5 {[%clk 0:02:33]} 13. Qe2 {[%clk 0:02:34]}  Nf8 {[%clk 0:02:32]} 14. c4 {[%clk 0:02:25]}  bxc4 {[%clk 0:02:26]} 15. Bxc4 {[%clk 0:02:21]}  Qd7 {[%clk 0:02:23]} 16. c3 {[%clk 0:02:18]}  h6 {[%clk 0:02:22]} 17. Nf3 {[%clk 0:02:17]}  Nh7 {[%clk 0:02:11]} 18. Bd3 {[%clk 0:02:05]}  Nf8 {[%clk 0:02:08]} 19. Nh4 {[%clk 0:02:04]}  g5 {[%clk 0:02:07]} 20. Ng6 {[%clk 0:02:03]}  Rg8 {[%clk 0:01:50]} 21. f5 {[%clk 0:01:51]}  Bf6 {[%clk 0:01:25]} 22. Kh1 {[%clk 0:01:47]}  Kf7 {[%clk 0:01:15]} 23. c4 {[%clk 0:01:40]}  Bb7 {[%clk 0:01:13]} 24. Bb2 {[%clk 0:01:22]}  exf5 {[%clk 0:01:03]} 25. Bxf5 {[%clk 0:01:21]}  e6 {[%clk 0:01:03]} 26. Nxf8 {[%clk 0:01:19]}  Raxf8 {[%clk 0:01:02]} 27. Bg4 {[%clk 0:01:17]}  Kg7 {[%clk 0:01:00]} 28. d5 {[%clk 0:01:15]}  Qe7 {[%clk 0:00:52]} 29. Rxf6 {[%clk 0:01:11]}  Rxf6 {[%clk 0:00:51]} 30. Rf1 {[%clk 0:01:09]}  e5 {[%clk 0:00:50]} 31. Rb1 {[%clk 0:00:52]}  Bc8 {[%clk 0:00:45]} 32. Bf3 {[%clk 0:00:45]}  Rgf8 {[%clk 0:00:43]} 33. h3 {[%clk 0:00:43]}  Bxh3 {[%clk 0:00:38]} 34. Bc3 {[%clk 0:00:33]}  g4 {[%clk 0:00:28]} 35. Be4 {[%clk 0:00:32]}  Rf2 {[%clk 0:00:27]} 36. Qd3 {[%clk 0:00:29]}  Qf6 {[%clk 0:00:13]} 37. gxh3 {[%clk 0:00:28]}  Qf4 {[%clk 0:00:13]} 38. Bxe5+ {[%clk 0:00:08]}  dxe5 {[%clk 0:00:12]} 0-1


[Site "https://www.chess.com"]

[Event "Early Titled Tuesday Blitz | February 8 2022"]
[White "Yang, Kaiqi"]
[Black "Redzisz, Michal"]
[WhiteFideId "8604398"]
[BlackFideId "21816107"]
[WhiteElo "2373"]
[BlackElo "1961"]
[Result "1-0"]
[Round "06"]
[TimeControl "180+1"]
[Date "2022.02.08"]
[WhiteClock "0:00:07"]
[BlackClock "0:00:05"]

1. c4 {[%clk 0:03:00]}  e5 {[%clk 0:02:56]} 2. g3 {[%clk 0:03:00]}  Nc6 {[%clk 0:02:56]} 3. Bg2 {[%clk 0:03:00]}  f5 {[%clk 0:02:57]} 4. Nc3 {[%clk 0:02:59]}  Nf6 {[%clk 0:02:57]} 5. d3 {[%clk 0:02:54]}  g6 {[%clk 0:02:55]} 6. Bg5 {[%clk 0:02:34]}  Bg7 {[%clk 0:02:55]} 7. Nd5 {[%clk 0:02:30]}  O-O {[%clk 0:02:53]} 8. e3 {[%clk 0:02:28]}  d6 {[%clk 0:02:47]} 9. Ne2 {[%clk 0:02:28]}  Ne7 {[%clk 0:02:42]} 10. Nec3 {[%clk 0:02:19]}  c6 {[%clk 0:02:40]} 11. Nxf6+ {[%clk 0:02:16]}  Bxf6 {[%clk 0:02:40]} 12. Bxf6 {[%clk 0:02:15]}  Rxf6 {[%clk 0:02:40]} 13. O-O {[%clk 0:02:13]}  Be6 {[%clk 0:02:34]} 14. f4 {[%clk 0:02:07]}  e4 {[%clk 0:02:11]} 15. dxe4 {[%clk 0:01:59]}  Bxc4 {[%clk 0:02:12]} 16. Rf2 {[%clk 0:01:59]}  Qb6 {[%clk 0:02:05]} 17. Qd2 {[%clk 0:01:47]}  Rd8 {[%clk 0:02:00]} 18. Re1 {[%clk 0:01:44]}  d5 {[%clk 0:01:43]} 19. Na4 {[%clk 0:01:17]}  Qc7 {[%clk 0:00:32]} 20. Qc3 {[%clk 0:01:09]}  Rff8 {[%clk 0:00:24]} 21. b3 {[%clk 0:01:00]}  Bb5 {[%clk 0:00:19]} 22. Nc5 {[%clk 0:01:00]}  Kf7 {[%clk 0:00:11]} 23. a4 {[%clk 0:00:52]}  Ba6 {[%clk 0:00:08]} 24. exf5 {[%clk 0:00:33]}  Nxf5 {[%clk 0:00:08]} 25. e4 {[%clk 0:00:29]}  d4 {[%clk 0:00:08]} 26. Qb4 {[%clk 0:00:20]}  Ne3 {[%clk 0:00:08]} 27. Rd2 {[%clk 0:00:19]}  Qb6 {[%clk 0:00:04]} 28. Qxb6 {[%clk 0:00:07]}  axb6 {[%clk 0:00:05]} 29. Nxa6 {[%clk 0:00:08]}  bxa6 {[%clk 0:00:04]} 30. e5 {[%clk 0:00:08]}  c5 {[%clk 0:00:03]} 31. Bb7 {[%clk 0:00:08]}  a5 {[%clk 0:00:03]} 32. Ba6 {[%clk 0:00:08]}  Ke6 {[%clk 0:00:03]} 33. Bc4+ {[%clk 0:00:08]}  Nxc4 {[%clk 0:00:03]} 34. bxc4 {[%clk 0:00:09]}  Kf5 {[%clk 0:00:04]} 35. Kf2 {[%clk 0:00:09]}  Rfe8 {[%clk 0:00:04]} 36. Kf3 {[%clk 0:00:09]}  g5 {[%clk 0:00:04]} 37. g4+ {[%clk 0:00:09]}  Kg6 {[%clk 0:00:04]} 38. f5+ {[%clk 0:00:09]}  Kf7 {[%clk 0:00:05]} 39. Ke4 {[%clk 0:00:09]}  Re7 {[%clk 0:00:03]} 40. e6+ {[%clk 0:00:09]}  Kf6 {[%clk 0:00:03]} 41. Rb1 {[%clk 0:00:09]}  Rb7 {[%clk 0:00:03]} 42. Rdb2 {[%clk 0:00:08]}  Rd6 {[%clk 0:00:04]} 43. Rb3 {[%clk 0:00:08]}  h6 {[%clk 0:00:01]} 44. Rb5 {[%clk 0:00:08]}  Ke7 {[%clk 0:00:01]} 45. Rxc5 {[%clk 0:00:07]}  d3 {[%clk 0:00:02]} 46. Rd5 {[%clk 0:00:07]}  Rxd5 {[%clk 0:00:02]} 47. cxd5 {[%clk 0:00:07]}  d2 {[%clk 0:00:02]} 48. Rd1 {[%clk 0:00:05]}  Rc7 {[%clk 0:00:02]} 49. Rxd2 {[%clk 0:00:05]}  Rc4+ {[%clk 0:00:02]} 50. Rd4 {[%clk 0:00:06]}  Rc2 {[%clk 0:00:03]} 51. d6+ {[%clk 0:00:06]}  Ke8 {[%clk 0:00:03]} 52. d7+ {[%clk 0:00:06]}  Kd8 {[%clk 0:00:04]} 53. e7+ {[%clk 0:00:07]}  Kxe7 {[%clk 0:00:05]} 54. d8=Q+ {[%clk 0:00:07]} 1-0


[Site "https://www.chess.com"]

[Event "Early Titled Tuesday Blitz | February 8 2022"]
[White "Yeletsky, Ivan"]
[Black "Shuvalov, Evgenij"]
[WhiteFideId "24180327"]
[BlackFideId "4187237"]
[WhiteElo "2348"]
[BlackElo "2119"]
[Result "1-0"]
[Round "06"]
[TimeControl "180+1"]
[Date "2022.02.08"]
[WhiteClock "0:00:43"]
[BlackClock "0:00:06"]

1. e4 {[%clk 0:02:41]}  e6 {[%clk 0:02:59]} 2. b3 {[%clk 0:02:38]}  d5 {[%clk 0:03:00]} 3. Bb2 {[%clk 0:02:38]}  Nf6 {[%clk 0:02:59]} 4. e5 {[%clk 0:02:37]}  Ng8 {[%clk 0:02:58]} 5. Qg4 {[%clk 0:02:34]}  Nh6 {[%clk 0:02:57]} 6. Qh3 {[%clk 0:02:32]}  c5 {[%clk 0:02:56]} 7. f4 {[%clk 0:02:31]}  Nc6 {[%clk 0:02:55]} 8. Nf3 {[%clk 0:02:31]}  Bd7 {[%clk 0:02:53]} 9. Bb5 {[%clk 0:02:21]}  Nxe5 {[%clk 0:02:29]} 10. Bxd7+ {[%clk 0:02:14]}  Nxd7 {[%clk 0:02:29]} 11. Nc3 {[%clk 0:02:12]}  Qa5 {[%clk 0:02:19]} 12. f5 {[%clk 0:01:53]}  Nxf5 {[%clk 0:02:13]} 13. Nxd5 {[%clk 0:01:52]}  Nd4 {[%clk 0:01:55]} 14. Ne3 {[%clk 0:01:45]}  O-O-O {[%clk 0:01:42]} 15. Nc4 {[%clk 0:01:32]}  Qc7 {[%clk 0:01:28]} 16. Nxd4 {[%clk 0:01:23]}  cxd4 {[%clk 0:01:29]} 17. Bxd4 {[%clk 0:01:22]}  b5 {[%clk 0:01:20]} 18. Ne3 {[%clk 0:01:17]}  Nf6 {[%clk 0:01:16]} 19. Bb2 {[%clk 0:01:08]}  Ne4 {[%clk 0:01:11]} 20. Qf3 {[%clk 0:01:03]}  f5 {[%clk 0:00:54]} 21. O-O-O {[%clk 0:01:02]}  Bd6 {[%clk 0:00:41]} 22. Nxf5 {[%clk 0:01:02]}  exf5 {[%clk 0:00:37]} 23. Qxf5+ {[%clk 0:01:02]}  Kb8 {[%clk 0:00:38]} 24. Qxe4 {[%clk 0:01:02]}  Rhe8 {[%clk 0:00:37]} 25. Qxh7 {[%clk 0:01:00]}  Be5 {[%clk 0:00:36]} 26. Rhe1 {[%clk 0:00:50]}  Bxb2+ {[%clk 0:00:34]} 27. Kxb2 {[%clk 0:00:51]}  Rxe1 {[%clk 0:00:34]} 28. Rxe1 {[%clk 0:00:51]}  Rxd2 {[%clk 0:00:34]} 29. Re8+ {[%clk 0:00:49]}  Kb7 {[%clk 0:00:27]} 30. Qe4+ {[%clk 0:00:49]}  Ka6 {[%clk 0:00:24]} 31. Re6+ {[%clk 0:00:44]}  Rd6 {[%clk 0:00:11]} 32. Qe5 {[%clk 0:00:44]}  Rxe6 {[%clk 0:00:07]} 33. Qxc7 {[%clk 0:00:44]}  Rb6 {[%clk 0:00:06]} 34. Qxg7 {[%clk 0:00:43]} 1-0


[Site "https://www.chess.com"]

[Event "Early Titled Tuesday Blitz | February 8 2022"]
[White "Yirik, Volkan"]
[Black "Haddouche, Mohamed"]
[WhiteFideId "6300782"]
[BlackFideId "7900660"]
[WhiteElo "2375"]
[BlackElo "2443"]
[Result "0-1"]
[Round "06"]
[TimeControl "180+1"]
[Date "2022.02.08"]
[WhiteClock "0:01:19"]
[BlackClock "0:00:41"]

1. e4 {[%clk 0:02:54]}  e5 {[%clk 0:02:59]} 2. Nf3 {[%clk 0:02:50]}  Nc6 {[%clk 0:02:59]} 3. Nc3 {[%clk 0:02:51]}  Nf6 {[%clk 0:02:59]} 4. d4 {[%clk 0:02:50]}  exd4 {[%clk 0:02:58]} 5. Nxd4 {[%clk 0:02:51]}  Bb4 {[%clk 0:02:58]} 6. Nxc6 {[%clk 0:02:52]}  bxc6 {[%clk 0:02:59]} 7. Bd3 {[%clk 0:02:52]}  O-O {[%clk 0:02:59]} 8. O-O {[%clk 0:02:51]}  d5 {[%clk 0:02:59]} 9. exd5 {[%clk 0:02:52]}  cxd5 {[%clk 0:02:54]} 10. Bg5 {[%clk 0:02:51]}  c6 {[%clk 0:02:52]} 11. Qf3 {[%clk 0:02:51]}  Bd6 {[%clk 0:02:53]} 12. h3 {[%clk 0:02:51]}  h6 {[%clk 0:02:46]} 13. Bf4 {[%clk 0:02:50]}  Rb8 {[%clk 0:02:45]} 14. b3 {[%clk 0:02:50]}  Rb4 {[%clk 0:02:44]} 15. Bxd6 {[%clk 0:02:50]}  Qxd6 {[%clk 0:02:45]} 16. Rfe1 {[%clk 0:02:46]}  Be6 {[%clk 0:02:43]} 17. Ne2 {[%clk 0:02:45]}  Re8 {[%clk 0:02:35]} 18. c3 {[%clk 0:02:44]}  Rbb8 {[%clk 0:02:34]} 19. Nd4 {[%clk 0:02:44]}  Bd7 {[%clk 0:02:32]} 20. Bf5 {[%clk 0:02:42]}  Rxe1+ {[%clk 0:02:29]} 21. Rxe1 {[%clk 0:02:42]}  c5 {[%clk 0:02:22]} 22. Nc2 {[%clk 0:02:34]}  a5 {[%clk 0:02:05]} 23. Bxd7 {[%clk 0:02:32]}  Qxd7 {[%clk 0:02:05]} 24. Rd1 {[%clk 0:02:31]}  Qe6 {[%clk 0:01:44]} 25. Ne3 {[%clk 0:02:29]}  Rd8 {[%clk 0:01:44]} 26. Nf5 {[%clk 0:02:22]}  Ne4 {[%clk 0:01:24]} 27. g4 {[%clk 0:02:18]}  Ng5 {[%clk 0:01:00]} 28. Qg3 {[%clk 0:02:17]}  Qe4 {[%clk 0:00:58]} 29. h4 {[%clk 0:02:07]}  Nf3+ {[%clk 0:00:55]} 30. Kf1 {[%clk 0:02:06]}  d4 {[%clk 0:00:54]} 31. cxd4 {[%clk 0:02:01]}  cxd4 {[%clk 0:00:54]} 32. Qg2 {[%clk 0:01:31]}  Re8 {[%clk 0:00:45]} 33. Qg3 {[%clk 0:01:21]}  Qe2+ {[%clk 0:00:43]} 34. Kg2 {[%clk 0:01:22]}  Qxd1 {[%clk 0:00:42]} 35. Qxf3 {[%clk 0:01:20]}  Qxf3+ {[%clk 0:00:41]} 36. Kxf3 {[%clk 0:01:21]}  d3 {[%clk 0:00:42]} 37. Ne3 {[%clk 0:01:19]}  g6 {[%clk 0:00:41]} 0-1


[Site "https://www.chess.com"]

[Event "Early Titled Tuesday Blitz | February 8 2022"]
[White "Zanette, Edgard Vinicius"]
[Black "Stefanov, Plamen"]
[WhiteFideId "2109263"]
[BlackFideId "2900980"]
[WhiteElo "2182"]
[BlackElo "2137"]
[Result "1-0"]
[Round "06"]
[TimeControl "180+1"]
[Date "2022.02.08"]
[WhiteClock "0:00:27"]
[BlackClock "0:00:10"]

1. e4 {[%clk 0:03:00]}  d5 {[%clk 0:02:59]} 2. exd5 {[%clk 0:02:57]}  Nf6 {[%clk 0:03:00]} 3. Bb5+ {[%clk 0:02:56]}  Bd7 {[%clk 0:02:59]} 4. Bc4 {[%clk 0:02:56]}  Bg4 {[%clk 0:02:58]} 5. f3 {[%clk 0:02:55]}  Bc8 {[%clk 0:02:58]} 6. Nc3 {[%clk 0:02:55]}  Nbd7 {[%clk 0:02:57]} 7. Bb3 {[%clk 0:02:55]}  Nb6 {[%clk 0:02:57]} 8. Nge2 {[%clk 0:02:54]}  Nfxd5 {[%clk 0:02:57]} 9. Nxd5 {[%clk 0:02:54]}  Nxd5 {[%clk 0:02:56]} 10. d4 {[%clk 0:02:54]}  c6 {[%clk 0:02:56]} 11. O-O {[%clk 0:02:54]}  g6 {[%clk 0:02:55]} 12. c4 {[%clk 0:02:54]}  Nb6 {[%clk 0:02:54]} 13. Be3 {[%clk 0:02:48]}  Bg7 {[%clk 0:02:53]} 14. Qd2 {[%clk 0:02:48]}  O-O {[%clk 0:02:53]} 15. Rad1 {[%clk 0:02:47]}  Qc7 {[%clk 0:02:43]} 16. Rfe1 {[%clk 0:02:41]}  Rd8 {[%clk 0:02:42]} 17. Bh6 {[%clk 0:02:35]}  c5 {[%clk 0:02:28]} 18. Bxg7 {[%clk 0:02:30]}  Kxg7 {[%clk 0:02:27]} 19. d5 {[%clk 0:02:28]}  a5 {[%clk 0:02:11]} 20. a3 {[%clk 0:02:11]}  a4 {[%clk 0:02:10]} 21. Ba2 {[%clk 0:02:10]}  Nd7 {[%clk 0:02:06]} 22. Nc3 {[%clk 0:02:06]}  Nf6 {[%clk 0:02:03]} 23. Nb5 {[%clk 0:02:04]}  Qd7 {[%clk 0:01:53]} 24. Qe3 {[%clk 0:02:02]}  b6 {[%clk 0:01:22]} 25. Qxe7 {[%clk 0:01:58]}  Ba6 {[%clk 0:01:20]} 26. Qxd7 {[%clk 0:01:41]}  Rxd7 {[%clk 0:01:20]} 27. Nc3 {[%clk 0:01:41]}  Re8 {[%clk 0:01:14]} 28. Rxe8 {[%clk 0:01:39]}  Nxe8 {[%clk 0:01:14]} 29. Nxa4 {[%clk 0:01:37]}  Nd6 {[%clk 0:01:13]} 30. b3 {[%clk 0:01:30]}  Rb7 {[%clk 0:01:05]} 31. Bb1 {[%clk 0:01:25]}  Kf8 {[%clk 0:01:01]} 32. Kf2 {[%clk 0:01:24]}  Ke7 {[%clk 0:01:01]} 33. Re1+ {[%clk 0:01:23]}  Kd8 {[%clk 0:01:01]} 34. Bc2 {[%clk 0:01:21]}  b5 {[%clk 0:00:50]} 35. Nxc5 {[%clk 0:01:20]}  Ra7 {[%clk 0:00:50]} 36. cxb5 {[%clk 0:01:15]}  Bxb5 {[%clk 0:00:46]} 37. a4 {[%clk 0:01:13]}  Rc7 {[%clk 0:00:43]} 38. b4 {[%clk 0:01:09]}  Bd7 {[%clk 0:00:31]} 39. Bb3 {[%clk 0:01:03]}  Nb7 {[%clk 0:00:28]} 40. Rc1 {[%clk 0:00:58]}  Nxc5 {[%clk 0:00:23]} 41. bxc5 {[%clk 0:00:58]}  Rb7 {[%clk 0:00:23]} 42. Rc3 {[%clk 0:00:56]}  Rb4 {[%clk 0:00:21]} 43. c6 {[%clk 0:00:55]}  Bc8 {[%clk 0:00:21]} 44. d6 {[%clk 0:00:55]}  f5 {[%clk 0:00:15]} 45. g3 {[%clk 0:00:45]}  Ba6 {[%clk 0:00:14]} 46. Be6 {[%clk 0:00:38]}  Rxa4 {[%clk 0:00:12]} 47. c7+ {[%clk 0:00:37]}  Ke8 {[%clk 0:00:12]} 48. d7+ {[%clk 0:00:37]}  Ke7 {[%clk 0:00:11]} 49. d8=Q+ {[%clk 0:00:34]}  Kxe6 {[%clk 0:00:12]} 50. Re3+ {[%clk 0:00:33]}  Kf7 {[%clk 0:00:10]} 51. Re7+ {[%clk 0:00:31]}  Kf6 {[%clk 0:00:11]} 52. Qd6+ {[%clk 0:00:29]}  Kg5 {[%clk 0:00:11]} 53. h4+ {[%clk 0:00:29]}  Kh5 {[%clk 0:00:11]} 54. g4+ {[%clk 0:00:29]}  Kh6 {[%clk 0:00:10]} 55. g5+ {[%clk 0:00:27]}  Kh5 {[%clk 0:00:10]} 56. Rxh7# {[%clk 0:00:27]} 1-0


[Site "https://www.chess.com"]

[Event "Early Titled Tuesday Blitz | February 8 2022"]
[White "Aggelis, Nikolaos"]
[Black "Viani Antonio Dcunha"]
[WhiteFideId "4213220"]
[BlackFideId "5027330"]
[WhiteElo "2154"]
[BlackElo "2366"]
[Result "0-1"]
[Round "07"]
[TimeControl "180+1"]
[Date "2022.02.08"]
[WhiteClock "0:00:02"]
[BlackClock "0:00:13"]

1. d4 {[%clk 0:02:50]}  Nf6 {[%clk 0:02:59]} 2. g3 {[%clk 0:02:51]}  g6 {[%clk 0:02:57]} 3. Bg2 {[%clk 0:02:46]}  Bg7 {[%clk 0:02:57]} 4. Nf3 {[%clk 0:02:47]}  O-O {[%clk 0:02:58]} 5. O-O {[%clk 0:02:48]}  d6 {[%clk 0:02:57]} 6. b3 {[%clk 0:02:47]}  Nc6 {[%clk 0:02:57]} 7. Bb2 {[%clk 0:02:47]}  Bg4 {[%clk 0:02:50]} 8. h3 {[%clk 0:02:45]}  Bxf3 {[%clk 0:02:46]} 9. Bxf3 {[%clk 0:02:45]}  e5 {[%clk 0:02:45]} 10. Bxc6 {[%clk 0:02:31]}  bxc6 {[%clk 0:02:44]} 11. dxe5 {[%clk 0:02:32]}  Nd7 {[%clk 0:02:44]} 12. c4 {[%clk 0:02:19]}  Nxe5 {[%clk 0:02:43]} 13. Qd2 {[%clk 0:02:19]}  Rb8 {[%clk 0:02:33]} 14. Nc3 {[%clk 0:02:14]}  Qf6 {[%clk 0:02:15]} 15. Rab1 {[%clk 0:02:10]}  Rfe8 {[%clk 0:02:14]} 16. Kg2 {[%clk 0:02:09]}  h5 {[%clk 0:02:13]} 17. Ne4 {[%clk 0:01:59]}  Qf5 {[%clk 0:02:10]} 18. f3 {[%clk 0:01:56]}  d5 {[%clk 0:01:50]} 19. cxd5 {[%clk 0:01:55]}  cxd5 {[%clk 0:01:51]} 20. Qxd5 {[%clk 0:01:44]}  Rbd8 {[%clk 0:01:42]} 21. Qa5 {[%clk 0:01:43]}  h4 {[%clk 0:01:37]} 22. g4 {[%clk 0:01:37]}  Nxg4 {[%clk 0:01:33]} 23. Qxf5 {[%clk 0:01:36]}  Ne3+ {[%clk 0:01:30]} 24. Kf2 {[%clk 0:01:34]}  Nxf5 {[%clk 0:01:29]} 25. Bxg7 {[%clk 0:01:24]}  Kxg7 {[%clk 0:01:29]} 26. Rfd1 {[%clk 0:01:23]}  Nd4 {[%clk 0:01:23]} 27. Rd2 {[%clk 0:01:16]}  f5 {[%clk 0:01:13]} 28. Nc5 {[%clk 0:01:14]}  Kf6 {[%clk 0:01:03]} 29. Rbd1 {[%clk 0:01:13]}  Nc6 {[%clk 0:01:00]} 30. Na6 {[%clk 0:00:56]}  Rxd2 {[%clk 0:00:56]} 31. Rxd2 {[%clk 0:00:56]}  Re7 {[%clk 0:00:56]} 32. e3 {[%clk 0:00:47]}  f4 {[%clk 0:00:38]} 33. e4 {[%clk 0:00:45]}  Ne5 {[%clk 0:00:37]} 34. Rc2 {[%clk 0:00:31]}  Rd7 {[%clk 0:00:32]} 35. Nb4 {[%clk 0:00:16]}  Rd1 {[%clk 0:00:24]} 36. Nd5+ {[%clk 0:00:15]}  Kg5 {[%clk 0:00:24]} 37. Ke2 {[%clk 0:00:15]}  Rh1 {[%clk 0:00:23]} 38. Nxc7 {[%clk 0:00:11]}  Rxh3 {[%clk 0:00:22]} 39. Ne6+ {[%clk 0:00:10]}  Kf6 {[%clk 0:00:19]} 40. Nxf4 {[%clk 0:00:10]}  Rxf3 {[%clk 0:00:17]} 41. Nd5+ {[%clk 0:00:11]}  Kg5 {[%clk 0:00:16]} 42. Rc7 {[%clk 0:00:11]}  Rg3 {[%clk 0:00:15]} 43. Rh7 {[%clk 0:00:11]}  Rg2+ {[%clk 0:00:14]} 44. Kf1 {[%clk 0:00:10]}  Rxa2 {[%clk 0:00:15]} 45. Nc3 {[%clk 0:00:06]}  Rc2 {[%clk 0:00:14]} 46. Nd5 {[%clk 0:00:06]}  Nf3 {[%clk 0:00:14]} 47. Ne3 {[%clk 0:00:05]}  Ra2 {[%clk 0:00:13]} 48. Nd5 {[%clk 0:00:05]}  Kg4 {[%clk 0:00:13]} 49. Nf6+ {[%clk 0:00:05]}  Kg3 {[%clk 0:00:12]} 50. Nh5+ {[%clk 0:00:01]}  gxh5 {[%clk 0:00:13]} 51. Rg7+ {[%clk 0:00:02]}  Kf4 {[%clk 0:00:14]} 52. e5 {[%clk 0:00:02]}  Ke3 {[%clk 0:00:13]} 0-1


[Site "https://www.chess.com"]